bitfinex/quotes_BTCUSD_20220201
["timestamp","ask_amount","ask_price","bid_price","bid_amount"]
[1643738572677,0.05610609,38875.0,38873.0,0.11594906]
[1643738573881,0.00610609,38875.0,38873.0,0.11594906]
[1643738574282,1.4,38872.0,38856.0,0.52628585]
[1643738574487,1.59177906,38871.0,38854.0,0.00010461]
[1643738574687,1.59177906,38871.0,38852.0,0.28127436]
[1643738574688,0.064346,38865.0,38852.0,0.28127436]
[1643738574883,0.1,38862.0,38845.0,0.00010512]
[1643738575093,0.1,38863.0,38834.0,0.81096855]
[1643738575094,0.05,38856.0,38834.0,0.81096855]
[1643738575324,1.4,38847.0,38834.0,0.37707268]
[1643738575520,1.4,38847.0,38835.0,0.35078512]
[1643738575521,0.56677806,38846.0,38835.0,0.35078512]
[1643738575834,0.56677806,38846.0,38821.0,0.0577]
[1643738575835,0.15,38839.0,38834.0,0.02159477]
[1643738576019,0.193151,38844.0,38821.0,0.01]
[1643738576020,0.05,38829.0,38822.0,0.0999]
[1643738576227,0.59104806,38828.0,38822.0,0.0999]
[1643738576521,1.528838,38825.0,38818.0,0.06646163]
[1643738576719,0.59274806,38824.0,38818.0,0.06280889]
[1643738576922,0.59274806,38824.0,38812.0,0.21376051]
[1643738576923,0.6457,38819.0,38812.0,0.21376051]
[1643738577119,0.6457,38815.0,38812.0,0.21376051]
[1643738577319,0.500969,38814.0,38812.0,0.21376051]
[1643738577523,1.59177906,38813.0,38797.0,0.46530865]
[1643738577719,0.449269,38812.0,38797.0,0.3824]
[1643738577921,0.14515161,38806.0,38795.0,4.01748908]
[1643738578122,0.0517,38805.0,38795.0,4.01748908]
[1643738578320,0.349269,38804.0,38795.0,4.01748908]
[1643738578622,1.5017,38803.0,38802.0,0.04664597]
[1643738578946,1.5017,38803.0,38795.0,4.01748908]
[1643738578947,0.06446,38801.0,38795.0,4.01748908]
[1643738579143,0.900969,38800.0,38792.0,0.5239]
[1643738579341,0.05,38798.0,38792.0,0.5239]
[1643738579542,0.349269,38797.0,38792.0,0.52300435]
[1643738579743,0.349269,38797.0,38784.0,0.66140432]
[1643738579744,0.064464,38796.0,38784.0,0.66140432]
[1643738579943,0.0517,38795.0,38784.0,0.27950432]
[1643738580148,0.5,38794.0,38793.0,0.00146491]
[1643738580343,0.5517,38794.0,38793.0,0.00146491]
[1643738580542,0.0517,38794.0,38793.0,0.00146491]
[1643738580745,0.05,38798.0,38794.0,0.95]
[1643738580945,0.0517,38797.0,38793.0,0.00146491]
[1643738581144,0.05,38798.0,38792.0,0.22822467]
[1643738581344,0.05,38798.0,38794.0,0.00146488]
[1643738581945,0.0517,38803.0,38794.0,0.00146488]
[1643738582345,0.09854,38804.0,38793.0,0.05]
[1643738582544,0.09854,38804.0,38797.0,0.00146483]
[1643738582802,0.09854,38804.0,38800.0,0.26873659]
[1643738583802,0.09854,38804.0,38800.0,0.27020135]
[1643738584002,0.09854,38804.0,38801.0,0.09544556]
[1643738584210,0.09854,38804.0,38801.0,0.29544556]
[1643738584405,0.09854,38804.0,38803.0,1.50511771]
[1643738584805,0.09854,38804.0,38803.0,1.55511771]
[1643738585004,0.09854,38804.0,38803.0,1.65511771]
[1643738585406,0.09854,38804.0,38803.0,1.70681771]
[1643738585605,0.09854,38804.0,38803.0,1.60681771]
[1643738587034,0.09854,38804.0,38803.0,0.1017]
[1643738587237,0.09854,38804.0,38803.0,0.0517]
[1643738587434,0.09854,38804.0,38802.0,0.00146473]
[1643738587635,0.09854,38804.0,38796.0,0.0058598]
[1643738587934,0.09854,38804.0,38798.0,0.01997115]
[1643738588737,0.05,38802.0,38798.0,0.01997115]
[1643738589036,0.05,38802.0,38786.0,0.25708544]
[1643738589037,1.4,38800.0,38786.0,0.25708544]
[1643738589235,0.1654554,38797.0,38786.0,0.25708544]
[1643738589636,0.15,38802.0,38787.0,1.4]
[1643738589637,0.05,38802.0,38787.0,1.4]
[1643738589838,0.2106226,38808.0,38798.0,0.01997115]
[1643738590290,0.2606226,38808.0,38798.0,0.01997115]
[1643738590692,0.2606226,38808.0,38799.0,0.28302558]
[1643738590989,0.00067464,38812.0,38805.0,1.4]
[1643738591191,0.15,38815.0,38806.0,0.8]
[1643738591389,0.15,38815.0,38811.0,0.10177613]
[1643738591390,0.05,38815.0,38811.0,0.10177613]
[1643738591590,0.05,38816.0,38811.0,0.10177613]
[1643738591791,0.23128695,38815.0,38812.0,0.1068288]
[1643738591996,0.05,38816.0,38810.0,0.23672345]
[1643738592191,0.07573,38819.0,38795.0,0.05]
[1643738592192,0.05,38815.0,38795.0,0.05]
[1643738592590,0.21070938,38814.0,38795.0,0.13753113]
[1643738592790,0.21070938,38814.0,38795.0,0.13434737]
[1643738592989,0.21070938,38814.0,38801.0,0.10243097]
[1643738593190,0.064433,38813.0,38801.0,0.10243097]
[1643738593392,0.13750251,38811.0,38801.0,0.10243097]
[1643738593691,0.21070938,38810.0,38794.0,0.05]
[1643738593943,0.18750251,38811.0,38794.0,0.05]
[1643738593944,0.18750251,38811.0,38801.0,0.01944347]
[1643738594345,0.05,38811.0,38801.0,0.01944347]
[1643738594553,0.0006755,38814.0,38801.0,0.01944347]
[1643738594747,0.0006755,38814.0,38811.0,0.09800645]
[1643738594948,0.0006755,38814.0,38812.0,0.0517]
[1643738595546,0.38267715,38824.0,38812.0,0.0517]
[1643738595547,0.16569502,38822.0,38812.0,0.0517]
[1643738595746,0.00134783,38815.0,38812.0,0.0517]
[1643738595945,0.00134783,38815.0,38813.0,0.25329683]
[1643738596146,0.00134783,38815.0,38814.0,0.71867369]
[1643738596547,0.00134783,38815.0,38814.0,0.77037369]
[1643738596749,0.064415,38828.0,38814.0,0.77037369]
[1643738597049,0.00134783,38816.0,38814.0,0.77037369]
[1643738597887,0.47,38823.0,38814.0,0.77037369]
[1643738598086,0.00134783,38817.0,38814.0,0.17037369]
[1643738598290,0.00134783,38817.0,38814.0,0.0517]
[1643738598492,0.00134783,38817.0,38811.0,0.02097805]
[1643738598493,0.349269,38816.0,38811.0,0.02097805]
[1643738598689,0.399269,38816.0,38811.0,0.02097805]
[1643738598887,0.1,38815.0,38811.0,0.02097805]
[1643738599088,0.07021408,38814.0,38811.0,0.02097805]
[1643738599290,0.05,38814.0,38811.0,0.02097805]
[1643738599689,0.15134783,38815.0,38811.0,0.02097805]
[1643738599892,0.00134783,38815.0,38811.0,0.02097805]
[1643738600089,0.00134783,38815.0,38807.0,0.01832048]
[1643738600290,0.164417,38822.0,38807.0,0.1172013]
[1643738600489,0.00129879,38814.0,38811.0,0.12315412]
[1643738600689,0.00098854,38814.0,38811.0,0.12315412]
[1643738601545,0.05,38821.0,38811.0,0.12315412]
[1643738601944,0.05,38821.0,38812.0,0.20787271]
[1643738602146,0.05,38821.0,38811.0,0.12315412]
[1643738602546,0.05,38821.0,38812.0,0.21045925]
[1643738602743,0.05,38821.0,38817.0,0.09237738]
[1643738603945,0.05,38821.0,38814.0,0.01828197]
[1643738604148,0.55779264,38819.0,38814.0,0.01828197]
[1643738604348,0.1,38818.0,38814.0,0.01828197]
[1643738604550,0.55779264,38817.0,38814.0,0.01828197]
[1643738604747,0.1,38816.0,38814.0,0.01828197]
[1643738604948,1.749285,38815.0,38814.0,0.01828197]
[1643738605204,1.899285,38815.0,38814.0,0.01828197]
[1643738605600,0.00134535,38817.0,38814.0,0.29449631]
[1643738605601,0.06577435,38817.0,38814.0,0.29449631]
[1643738605799,0.00134535,38817.0,38815.0,0.0517]
[1643738606295,0.05,38820.0,38815.0,0.0517]
[1643738606695,0.00134535,38818.0,38815.0,0.0517]
[1643738607496,0.05,38820.0,38815.0,0.0517]
[1643738607702,0.484418,38823.0,38816.0,0.20850764]
[1643738607703,0.00134535,38818.0,38816.0,0.20850764]
[1643738607896,0.00121082,38818.0,38817.0,1.72823]
[1643738608096,0.00121082,38818.0,38817.0,0.37993]
[1643738608296,0.00121082,38818.0,38817.0,0.58270835]
[1643738608496,0.00121082,38818.0,38817.0,0.37993]
[1643738608696,0.42,38823.0,38817.0,0.37993]
[1643738608939,0.42,38823.0,38818.0,0.34033373]
[1643738609240,0.42,38823.0,38819.0,0.0517]
[1643738609641,0.05,38828.0,38822.0,1.49766223]
[1643738609841,0.05,38828.0,38823.0,0.379863]
[1643738610043,0.05,38828.0,38824.0,0.21410543]
[1643738610345,0.05,38828.0,38825.0,0.5001047]
[1643738611340,0.05067241,38828.0,38825.0,0.5001047]
[1643738611942,0.05067241,38828.0,38825.0,0.1719597]
[1643738612142,0.05067241,38828.0,38826.0,0.328135]
[1643738612343,0.05,38828.0,38827.0,0.0517]
[1643738612542,0.05,38828.0,38827.0,0.379825]
[1643738612543,0.05134415,38828.0,38827.0,0.379825]
[1643738612791,0.05134415,38828.0,38827.0,1.179825]
[1643738612996,0.05134415,38828.0,38827.0,1.128125]
[1643738613391,0.05134415,38828.0,38827.0,0.328125]
[1643738613593,0.05,38828.0,38825.0,0.1202597]
[1643738613793,0.05,38828.0,38826.0,0.0474]
[1643738613994,0.05,38828.0,38826.0,0.0331]
[1643738614395,1.438693,38827.0,38826.0,0.0331]
[1643738614599,1.787974,38827.0,38823.0,0.01962766]
[1643738614797,0.449281,38826.0,38823.0,0.01962766]
[1643738614995,1.56054817,38824.0,38823.0,0.01962766]
[1643738615295,2.10982917,38824.0,38823.0,0.00029926]
[1643738615496,1.949281,38824.0,38823.0,0.00029926]
[1643738616194,1.949281,38824.0,38809.0,0.04493]
[1643738616195,1.949281,38824.0,38811.0,0.01936207]
[1643738616444,0.21174466,38820.0,38811.0,0.01936207]
[1643738616644,0.26174466,38820.0,38811.0,0.01936207]
[1643738616943,1.4,38818.0,38811.0,0.00436207]
[1643738617245,0.015,38812.0,38811.0,0.00436207]
[1643738618645,0.015,38812.0,38811.0,1.00436207]
[1643738618844,0.015,38812.0,38811.0,1.33264007]
[1643738619243,0.015,38812.0,38811.0,1.56115987]
[1643738619443,0.015,38812.0,38811.0,1.45218569]
[1643738619845,0.015,38812.0,38811.0,0.45218569]
[1643738620293,0.015,38812.0,38811.0,0.33264007]
[1643738620700,0.00286431,38812.0,38811.0,1.23264007]
[1643738621097,0.00286431,38812.0,38811.0,1.32874928]
[1643738621493,0.00286431,38812.0,38811.0,1.37614928]
[1643738621693,0.00286431,38812.0,38811.0,0.87614928]
[1643738622093,0.00286431,38812.0,38811.0,0.99964793]
[1643738622694,0.00286431,38812.0,38811.0,1.74964793]
[1643738623794,0.00286431,38812.0,38811.0,0.99964793]
[1643738624644,0.00286431,38812.0,38811.0,1.34964793]
[1643738625646,0.00286431,38812.0,38811.0,0.99964793]
[1643738626247,0.05134393,38820.0,38811.0,0.98315017]
[1643738626448,0.05134393,38820.0,38812.0,0.328272]
[1643738626851,0.05,38820.0,38812.0,0.328272]
[1643738627051,0.05134408,38820.0,38812.0,0.328272]
[1643738627452,0.05134408,38820.0,38817.0,0.09045101]
[1643738627694,0.05134408,38820.0,38811.0,0.57089865]
[1643738627890,0.05134408,38820.0,38812.0,0.328268]
[1643738627891,0.05,38820.0,38812.0,0.328268]
[1643738628090,0.05134406,38820.0,38812.0,0.328268]
[1643738628491,0.05134406,38820.0,38817.0,0.10819977]
[1643738629090,0.05,38820.0,38817.0,0.10819977]
[1643738629290,0.23978587,38820.0,38817.0,0.10819977]
[1643738629491,0.05134415,38820.0,38817.0,0.10819977]
[1643738630294,0.19408601,38819.0,38811.0,0.4474]
[1643738630495,0.05,38820.0,38812.0,0.328268]
[1643738630698,0.05134415,38820.0,38812.0,0.328268]
[1643738631296,0.05134415,38820.0,38818.0,0.12351725]
[1643738631543,0.05,38820.0,38818.0,0.12351725]
[1643738633244,0.05,38820.0,38814.0,0.28222603]
[1643738633443,0.05,38820.0,38815.0,0.328241]
[1643738634245,0.05134413,38820.0,38815.0,0.328241]
[1643738634444,0.05134413,38820.0,38817.0,0.08953209]
[1643738634645,0.05134413,38820.0,38814.0,0.0474]
[1643738634849,0.05134413,38820.0,38811.0,0.4]
[1643738635302,0.05,38820.0,38811.0,0.4]
[1643738635701,0.05,38820.0,38813.0,0.09220906]
[1643738637803,0.19053147,38819.0,38813.0,0.09220906]
[1643738638202,0.05134099,38820.0,38811.0,0.4]
[1643738638602,0.29391962,38820.0,38811.0,0.4]
[1643738638804,0.1,38820.0,38811.0,0.4]
[1643738639246,0.29229674,38820.0,38811.0,0.4]
[1643738639444,0.29164773,38820.0,38811.0,0.4]
[1643738639643,0.1,38820.0,38811.0,0.4]
[1643738640244,0.1,38820.0,38812.0,0.11230256]
[1643738640447,0.05,38820.0,38814.0,0.0919207]
[1643738640646,0.05,38820.0,38815.0,0.328244]
[1643738641347,0.05,38820.0,38819.0,0.09506046]
[1643738641547,0.01927069,38828.0,38819.0,0.09506046]
[1643738641747,0.06927069,38828.0,38819.0,0.09506046]
[1643738641948,0.06927069,38828.0,38820.0,0.0474]
[1643738642346,0.05,38828.0,38820.0,0.0474]
[1643738642547,0.05,38828.0,38825.0,0.33455174]
[1643738642797,0.00133792,38826.0,38825.0,0.33455174]
[1643738642998,0.00133792,38826.0,38825.0,0.1485578]
[1643738643198,0.00133792,38826.0,38825.0,0.0474]
[1643738643497,0.05,38828.0,38825.0,0.0474]
[1643738643900,0.00133792,38827.0,38825.0,0.0474]
[1643738644298,0.00133792,38827.0,38826.0,0.10955644]
[1643738644503,0.00133792,38827.0,38826.0,0.15695644]
[1643738644699,0.05,38828.0,38826.0,0.15695644]
[1643738645103,0.001,38832.0,38826.0,0.24748876]
[1643738645302,0.001,38832.0,38827.0,0.328136]
[1643738646300,0.001,38832.0,38828.0,0.0474]
[1643738646552,0.001,38832.0,38829.0,0.328104]
[1643738646750,0.001,38832.0,38830.0,0.0474]
[1643738646949,0.001,38832.0,38831.0,1.628085]
[1643738647150,0.001,38832.0,38831.0,1.90630008]
[1643738647752,0.001,38832.0,38831.0,0.60630008]
[1643738648251,0.001,38832.0,38831.0,0.59200008]
[1643738648651,0.001,38832.0,38831.0,0.361185]
[1643738649055,0.001,38832.0,38831.0,0.57745346]
[1643738649452,0.001,38832.0,38831.0,0.361185]
[1643738649655,0.001,38832.0,38831.0,0.56266272]
[1643738649854,0.001,38832.0,38831.0,0.57370195]
[1643738650056,0.001,38832.0,38831.0,0.361185]
[1643738652205,0.001,38832.0,38831.0,0.346885]
[1643738653105,0.001,38832.0,38820.0,0.04212037]
[1643738653503,0.05,38829.0,38820.0,0.04212037]
[1643738653946,0.05,38829.0,38822.0,0.10717689]
[1643738654152,0.19005351,38829.0,38822.0,0.10717689]
[1643738654549,0.00133767,38827.0,38822.0,0.10710226]
[1643738654753,0.00133767,38827.0,38814.0,0.3837]
[1643738655651,0.62219567,38829.0,38817.0,0.10713295]
[1643738655851,0.00133766,38823.0,38817.0,0.10713295]
[1643738656251,0.05,38821.0,38817.0,0.10713295]
[1643738656451,0.05,38821.0,38818.0,0.299602]
[1643738658397,0.05,38821.0,38818.0,0.58622725]
[1643738659502,0.05,38821.0,38818.0,0.299372]
[1643738664552,0.00133763,38823.0,38818.0,0.299372]
[1643738665201,0.05,38827.0,38818.0,0.299372]
[1643738665397,0.00133766,38823.0,38817.0,0.44710076]
[1643738665597,0.00133766,38823.0,38818.0,0.299374]
[1643738666399,0.05,38827.0,38818.0,0.299374]
[1643738666697,0.00133766,38823.0,38817.0,0.44710076]
[1643738666898,0.00133766,38823.0,38818.0,0.299374]
[1643738667499,0.05,38827.0,38818.0,0.299374]
[1643738667697,0.05,38827.0,38817.0,0.35729431]
[1643738667897,0.00133766,38823.0,38817.0,0.10713295]
[1643738668699,0.05,38827.0,38817.0,0.10713295]
[1643738668948,0.00133764,38823.0,38817.0,0.10713295]
[1643738669549,0.00133764,38823.0,38818.0,0.299374]
[1643738669949,0.15,38827.0,38822.0,0.75639523]
[1643738670150,0.15,38827.0,38822.0,0.5]
[1643738670151,0.00133766,38823.0,38822.0,0.5]
[1643738670348,0.00133766,38823.0,38822.0,0.299339]
[1643738670550,0.00133766,38823.0,38817.0,0.10713295]
[1643738670750,0.00133766,38823.0,38818.0,0.299374]
[1643738671150,0.15,38827.0,38818.0,0.299374]
[1643738671350,0.00133766,38823.0,38817.0,0.10713295]
[1643738671750,0.00133766,38823.0,38818.0,0.299374]
[1643738671952,0.00133766,38823.0,38817.0,0.10713295]
[1643738672354,0.15,38827.0,38817.0,0.10713295]
[1643738672551,0.00133764,38823.0,38817.0,0.10713295]
[1643738672811,0.00133764,38823.0,38818.0,0.299376]
[1643738673611,0.15,38827.0,38818.0,0.299376]
[1643738673911,0.00133766,38823.0,38817.0,0.34351845]
[1643738674411,0.00133766,38823.0,38817.0,0.10713295]
[1643738674812,0.1,38827.0,38817.0,0.10713295]
[1643738675015,0.00133764,38823.0,38817.0,0.10713295]
[1643738675211,0.00133764,38823.0,38818.0,0.25209494]
[1643738675910,0.1,38827.0,38818.0,0.25209494]
[1643738676112,0.00133766,38823.0,38817.0,0.10713295]
[1643738677152,0.1,38827.0,38817.0,0.10713295]
[1643738677956,0.064408,38825.0,38817.0,0.10713295]
[1643738678352,0.064408,38825.0,38814.0,0.3837]
[1643738678758,0.1,38827.0,38815.0,0.2038235]
[1643738678957,0.05,38827.0,38822.0,0.38442932]
[1643738679755,0.05,38827.0,38822.0,0.40449696]
[1643738679955,0.05,38827.0,38822.0,0.11488174]
[1643738680220,0.05,38827.0,38815.0,0.2038235]
[1643738680221,0.05,38827.0,38816.0,0.0516]
[1643738680609,0.05,38827.0,38814.0,0.40541218]
[1643738680808,0.05,38827.0,38815.0,0.26419083]
[1643738680809,2.11900259,38826.0,38815.0,0.26419083]
[1643738681007,0.00133859,38823.0,38815.0,0.26419083]
[1643738682008,0.1,38825.0,38815.0,0.26419083]
[1643738682210,0.00106079,38823.0,38815.0,0.26419083]
[1643738682409,0.00106079,38823.0,38815.0,0.32859283]
[1643738682610,0.00099655,38823.0,38815.0,0.32859283]
[1643738683211,0.1,38827.0,38815.0,0.32859283]
[1643738683410,0.15,38827.0,38815.0,0.32859283]
[1643738683611,0.1,38827.0,38815.0,0.32859283]
[1643738683812,0.164403,38827.0,38817.0,0.07486513]
[1643738684249,0.1,38827.0,38817.0,0.07486513]
[1643738684449,0.1,38827.0,38815.0,0.32859283]
[1643738685651,0.1,38827.0,38820.0,0.11441893]
[1643738685852,0.05,38827.0,38820.0,0.11441893]
[1643738686252,0.064404,38826.0,38820.0,0.11441893]
[1643738686452,0.05,38827.0,38820.0,0.11441893]
[1643738686851,0.05,38827.0,38822.0,0.28684328]
[1643738687052,0.00133843,38825.0,38822.0,0.28684328]
[1643738688001,0.05,38827.0,38815.0,0.26905375]
[1643738688198,0.00133843,38825.0,38815.0,0.20465175]
[1643738688399,0.00133843,38825.0,38814.0,0.48198093]
[1643738689199,0.064404,38826.0,38816.0,0.259159]
[1643738689399,0.00133835,38824.0,38816.0,0.259159]
[1643738689801,0.00133835,38824.0,38814.0,0.3837]
[1643738690202,0.06114235,38826.0,38814.0,0.3837]
[1643738690704,0.00133833,38824.0,38814.0,0.3837]
[1643738691551,0.06114235,38826.0,38814.0,0.3837]
[1643738691755,2.09017501,38820.0,38817.0,0.00079633]
[1643738692050,0.06114235,38826.0,38817.0,0.00079633]
[1643738692853,0.06114235,38826.0,38813.0,0.24964334]
[1643738693054,0.06114235,38826.0,38817.0,0.00079632]
[1643738693954,0.06114235,38826.0,38815.0,0.10146716]
[1643738694155,0.06114235,38826.0,38817.0,0.00079632]
[1643738695202,0.06114235,38826.0,38815.0,0.16586916]
[1643738695399,0.06247966,38826.0,38817.0,0.00146397]
[1643738696499,0.06114235,38826.0,38817.0,0.00146397]
[1643738696699,0.06247966,38826.0,38817.0,0.00146397]
[1643738697502,0.06114235,38826.0,38815.0,0.16586916]
[1643738697702,0.06114235,38826.0,38817.0,0.00146397]
[1643738698001,0.06247966,38826.0,38817.0,0.00146397]
[1643738698802,0.06440557,38825.0,38813.0,0.57506243]
[1643738699053,0.06440557,38825.0,38817.0,0.00146397]
[1643738699252,0.11440557,38825.0,38817.0,0.00146397]
[1643738699451,0.05,38824.0,38817.0,0.00146397]
[1643738700052,0.05,38824.0,38814.0,0.31541909]
[1643738700253,0.05,38824.0,38817.0,0.00146395]
[1643738701254,0.05,38824.0,38814.0,0.37982309]
[1643738701455,0.05,38824.0,38817.0,0.00146395]
[1643738702460,0.05,38824.0,38814.0,0.37982309]
[1643738702708,0.26247962,38826.0,38817.0,0.00146395]
[1643738703106,0.22951632,38825.0,38817.0,0.00146395]
[1643738703306,0.55700571,38825.0,38817.0,0.00146395]
[1643738703508,0.55700571,38825.0,38809.0,1.02827261]
[1643738703509,0.064409,38823.0,38809.0,1.02827261]
[1643738703712,0.064409,38823.0,38817.0,0.00146396]
[1643738703713,0.0516,38822.0,38817.0,0.00146396]
[1643738703908,0.349264,38821.0,38817.0,0.00146396]
[1643738704106,0.0516,38820.0,38817.0,0.00146396]
[1643738704306,0.21601724,38820.0,38817.0,0.00146396]
[1643738704510,0.064419,38819.0,38817.0,0.00146396]
[1643738704707,1.3016,38818.0,38812.0,0.0058566]
[1643738704908,1.3016,38818.0,38816.0,0.00146396]
[1643738705107,0.05,38817.0,38816.0,0.00146396]
[1643738705310,1.3516,38817.0,38816.0,0.00146396]
[1643738705908,1.3516,38817.0,38810.0,0.00585672]
[1643738706107,1.416023,38817.0,38815.0,0.00146399]
[1643738706311,0.05,38816.0,38815.0,0.00146399]
[1643738706548,0.9516,38816.0,38815.0,0.00146399]
[1643738707150,0.9516,38816.0,38808.0,0.12154517]
[1643738707350,0.9516,38816.0,38814.0,0.00146401]
[1643738708353,0.9516,38816.0,38808.0,0.12154517]
[1643738708553,0.9516,38816.0,38813.0,0.00146402]
[1643738708753,1.066024,38816.0,38813.0,0.00146402]
[1643738709356,0.064425,38814.0,38807.0,0.00585696]
[1643738709554,0.12884927,38814.0,38805.0,0.32573119]
[1643738709755,0.22884927,38814.0,38805.0,0.32573119]
[1643738710799,0.29327327,38814.0,38805.0,0.32573119]
[1643738713402,0.29327327,38814.0,38808.0,0.0014623]
[1643738714451,0.29327327,38814.0,38804.0,0.32573119]
[1643738714651,0.29327327,38814.0,38809.0,0.00146227]
[1643738715252,0.228849,38814.0,38809.0,0.11031949]
[1643738715655,0.228849,38814.0,38809.0,0.10885722]
[1643738715952,0.228849,38814.0,38810.0,0.00146226]
[1643738716757,0.228849,38814.0,38809.0,0.10885722]
[1643738716953,0.228849,38814.0,38810.0,0.00146225]
[1643738717354,0.228849,38814.0,38805.0,0.38661344]
[1643738717806,0.29327234,38814.0,38804.0,0.32573119]
[1643738718406,0.29327234,38814.0,38806.0,0.11329554]
[1643738719605,0.05,38812.0,38806.0,0.11329554]
[1643738720006,0.18518467,38811.0,38806.0,0.11329554]
[1643738720205,0.05,38811.0,38806.0,0.11329554]
[1643738720405,0.05,38812.0,38806.0,0.11329554]
[1643738720607,0.25227208,38811.0,38803.0,0.130836]
[1643738720808,0.25227208,38811.0,38803.0,0.002]
[1643738720809,2.7253512,38809.0,38803.0,0.002]
[1643738721010,0.60386758,38808.0,38803.0,0.002]
[1643738721209,0.75386758,38808.0,38803.0,0.002]
[1643738721454,0.55037446,38808.0,38803.0,0.002]
[1643738721652,0.75337804,38808.0,38803.0,0.002]
[1643738721852,1.16775408,38805.0,38804.0,0.00146056]
[1643738722055,1.56861808,38805.0,38801.0,0.0031]
[1643738722252,0.449264,38804.0,38798.0,0.02547855]
[1643738722453,1.3016,38803.0,38798.0,0.02547855]
[1643738722754,0.399264,38802.0,38798.0,0.01773911]
[1643738722952,0.064449,38800.0,38798.0,0.01189601]
[1643738723153,0.38091343,38800.0,38798.0,0.01189601]
[1643738723355,0.43091343,38800.0,38794.0,0.0031]
[1643738723655,0.0516,38799.0,38794.0,0.0031]
[1643738724759,1.24128659,38798.0,38794.0,0.0031]
[1643738724957,1.39288659,38798.0,38794.0,0.0031]
[1643738726104,1.39288659,38798.0,38792.0,0.02577936]
[1643738726105,0.95,38797.0,38792.0,0.02577936]
[1643738726306,0.95,38797.0,38791.0,0.0011]
[1643738726307,0.33796883,38796.0,38791.0,0.0011]
[1643738726509,0.33796883,38796.0,38790.0,0.0022]
[1643738726510,0.349264,38795.0,38790.0,0.0022]
[1643738726705,0.349264,38795.0,38793.0,0.00145895]
[1643738726706,1.4516,38794.0,38793.0,0.00145895]
[1643738726905,1.800864,38794.0,38793.0,0.00145895]
[1643738727103,1.850864,38794.0,38793.0,0.00145895]
[1643738727505,1.850864,38794.0,38793.0,5.895e-05]
[1643738727705,1.61803824,38793.0,38790.0,0.00115895]
[1643738727905,1.4,38791.0,38787.0,0.0011]
[1643738728106,0.400864,38790.0,38786.0,0.2629222]
[1643738728305,0.1,38789.0,38786.0,0.12678116]
[1643738728507,0.400864,38788.0,38786.0,0.12678116]
[1643738728705,1.72368925,38787.0,38786.0,0.08398116]
[1643738728954,1.72368925,38787.0,38786.0,0.0781444]
[1643738728955,0.72455325,38787.0,38786.0,0.0781444]
[1643738729362,2.12455325,38787.0,38786.0,0.0781444]
[1643738729755,3.48755325,38787.0,38786.0,0.0781444]
[1643738729958,2.12455325,38787.0,38786.0,0.0781444]
[1643738730157,2.18903525,38787.0,38786.0,0.0781444]
[1643738730356,2.2819817,38787.0,38786.0,0.0781444]
[1643738730555,3.6449817,38787.0,38786.0,0.0781444]
[1643738730756,3.55203525,38787.0,38786.0,0.0781444]
[1643738731957,3.6409469,38787.0,38786.0,0.0781444]
[1643738732356,4.2853469,38787.0,38785.0,0.00145729]
[1643738732560,3.39145265,38786.0,38781.0,0.002216]
[1643738732802,3.60593852,38786.0,38785.0,0.00123455]
[1643738733000,3.65753852,38786.0,38785.0,0.00123455]
[1643738733602,3.65753852,38786.0,38781.0,0.002216]
[1643738733804,0.064489,38783.0,38781.0,0.002216]
[1643738734003,0.59054708,38782.0,38781.0,0.002216]
[1643738734202,1.25,38781.0,38778.0,0.00325506]
[1643738734404,0.400864,38780.0,38778.0,0.00325506]
[1643738734603,0.450864,38780.0,38778.0,0.00325506]
[1643738734803,0.515354,38780.0,38770.0,0.29347611]
[1643738735003,0.16609,38780.0,38770.0,0.29347611]
[1643738735502,0.004,38777.0,38770.0,0.29347611]
[1643738735703,0.0516,38776.0,38775.0,0.00299223]
[1643738737454,0.0516,38776.0,38775.0,0.60299223]
[1643738738654,0.0516,38776.0,38775.0,0.00299223]
[1643738739255,0.0516,38776.0,38775.0,0.40299223]
[1643738739456,0.0516,38776.0,38775.0,0.00299223]
[1643738740058,0.00349724,38777.0,38772.0,0.1094015]
[1643738740317,0.00349724,38777.0,38773.0,0.299794]
[1643738741116,0.00349724,38777.0,38776.0,0.08095435]
[1643738741314,0.00349724,38777.0,38776.0,0.38072735]
[1643738741714,0.00349724,38777.0,38776.0,0.299773]
[1643738741917,0.00349724,38777.0,38774.0,0.064471]
[1643738741918,0.00349724,38777.0,38775.0,0.299781]
[1643738743715,0.00349724,38777.0,38772.0,0.11085558]
[1643738743962,0.00349724,38777.0,38773.0,0.299797]
[1643738744159,0.00349724,38777.0,38772.0,0.11085558]
[1643738744558,0.00349724,38777.0,38772.0,0.1094015]
[1643738744757,0.00349724,38777.0,38772.0,0.11085556]
[1643738745159,0.00349724,38777.0,38773.0,0.299799]
[1643738748412,0.00349724,38777.0,38773.0,0.399799]
[1643738748607,0.00106845,38778.0,38776.0,0.1]
[1643738748810,0.01909513,38789.0,38776.0,0.1]
[1643738748811,0.02150156,38789.0,38788.0,1.26664845]
[1643738749006,0.02150156,38789.0,38788.0,1.56630845]
[1643738749407,0.02150156,38789.0,38788.0,1.71913037]
[1643738750508,0.02150156,38789.0,38788.0,0.68498628]
[1643738753267,0.02150156,38789.0,38788.0,1.4437343]
[1643738753473,0.00135851,38790.0,38788.0,1.4437343]
[1643738753666,0.00135851,38790.0,38789.0,1.94984449]
[1643738753868,5.851e-05,38790.0,38789.0,3.51284449]
[1643738754068,0.06814761,38801.0,38789.0,3.56444449]
[1643738754269,0.06814761,38801.0,38800.0,0.1067234]
[1643738754468,0.04814761,38801.0,38800.0,1.2062714]
[1643738754668,0.01814761,38801.0,38800.0,1.2062714]
[1643738754870,0.42,38821.0,38800.0,1.2578714]
[1643738755069,0.05,38809.0,38801.0,0.21222368]
[1643738755314,0.05,38809.0,38807.0,0.31727906]
[1643738755522,0.7221,38820.0,38808.0,0.299473]
[1643738755715,0.1243,38820.0,38807.0,0.21759683]
[1643738756312,0.1243,38820.0,38807.0,0.11728625]
[1643738756512,0.14452654,38816.0,38807.0,0.11728625]
[1643738756714,0.00135526,38815.0,38807.0,0.11728625]
[1643738756913,0.00135526,38815.0,38803.0,0.01856325]
[1643738757116,0.00135526,38815.0,38804.0,0.299499]